bitfinex/quotes_SOLUSD_20260115
["timestamp","ask_amount","ask_price","bid_price","bid_amount"]
[1768498722510,0.49703974,143.84,143.8,10.24087589]
[1768498723325,3.57703974,143.86,143.81,0.18698112]
[1768498723531,0.49703974,143.87,143.83,0.18698112]
[1768498724127,0.49703974,143.87,143.83,3.52292724]
[1768498724332,0.49703974,143.87,143.83,10.47529112]
[1768498726035,0.49703974,143.87,143.83,10.28831]
[1768498726524,0.49703974,143.87,143.83,10.47529111]
[1768498726722,0.49703974,143.87,143.83,7.13934499]
[1768498726910,6.44748294,143.88,143.83,6.95236388]
[1768498727428,9.78342906,143.88,143.82,6.95301993]
[1768498727631,104.0,143.93,143.87,3.33594612]
[1768498727831,3.6258651,143.95,143.87,3.08]
[1768498728015,20.7030373,143.96,143.89,3.33594612]
[1768498728334,20.7030373,143.96,143.87,3.08]
[1768498728335,17.36709118,143.96,143.88,3.33594612]
[1768498728714,6.94703932,143.95,143.9,6.94927032]
[1768498728910,0.49703974,143.93,143.87,3.08]
[1768498729115,0.49703974,143.93,143.88,0.47333928]
[1768498729640,0.49703974,143.93,143.88,10.50347313]
[1768498730334,0.49703974,143.93,143.88,13.83941925]
[1768498731235,7.4452654,143.93,143.88,13.83941925]
[1768498731437,7.4452654,143.93,143.88,15.71610694]
[1768498731937,0.4603903,143.92,143.88,15.71610694]
[1768498732736,7.4087393,143.92,143.88,15.71610694]
[1768498732932,7.40834547,143.93,143.89,0.45499921]
[1768498733234,7.40834547,143.93,143.89,5.66763302]
[1768498733435,3.06,143.95,143.89,5.66763302]
[1768498734018,3.06,143.95,143.89,0.45499921]
[1768498734226,8.27263381,143.95,143.88,10.03013385]
[1768498734426,6.94733916,143.94,143.88,15.24276766]
[1768498734647,6.94733916,143.94,143.9,0.45499921]
[1768498734937,10.00702235,143.95,143.9,5.66763302]
[1768498735440,0.4603903,143.94,143.9,0.45499921]
[1768498735739,0.4603903,143.94,143.89,0.45499921]
[1768498736038,0.4603903,143.94,143.89,5.66763302]
[1768498736550,6.94782185,143.93,143.89,5.66763302]
[1768498736750,7.40821215,143.93,143.89,5.66763302]
[1768498737741,7.40821215,143.93,143.89,8.72763302]
[1768498739445,7.40821215,143.93,143.89,3.51499921]
[1768498740950,0.4603903,143.91,143.87,0.45499921]
[1768498741154,0.4603903,143.91,143.88,3.51499921]
[1768498741341,0.4603903,143.92,143.89,0.45499921]
[1768498742842,7.40880052,143.92,143.89,0.45499921]
[1768498743038,7.40801885,143.94,143.9,0.45499921]
[1768498744862,7.40835156,143.93,143.9,0.45499921]
[1768498746343,7.40835156,143.93,143.89,0.45499921]
[1768498746862,7.40963044,143.91,143.88,3.06]
[1768498747262,7.40963044,143.91,143.88,3.51499921]
[1768498747969,7.40963044,143.91,143.88,3.49499921]
[1768498748176,6.40963044,143.91,143.88,3.49499921]
[1768498750870,0.39519872,143.9,143.86,3.49499921]
[1768498751082,7.34485155,143.9,143.86,3.49499921]
[1768498751370,7.34485155,143.9,143.86,10.44611728]
[1768498752671,0.39519872,143.89,143.85,0.45499921]
[1768498753044,0.39519872,143.88,143.84,0.45499921]
[1768498753247,5.60783253,143.88,143.84,0.45499921]
[1768498753671,0.39519872,143.87,143.84,0.45499921]
[1768498754171,7.34609307,143.87,143.84,0.45499921]
[1768498756255,0.39519872,143.87,143.84,7.4071298]
[1768498756758,7.28592924,143.87,143.84,0.45499921]
[1768498758255,0.33519873,143.87,143.84,0.45499921]
[1768498758466,0.33519873,143.87,143.84,7.40693966]
[1768498758668,0.33519873,143.87,143.8,0.45499921]
[1768498758854,7.28640128,143.86,143.8,8.68763302]
[1768498759055,7.28640128,143.86,143.8,3.47499921]
[1768498760371,12.49903509,143.86,143.8,15.64152412]
[1768498760772,7.28640128,143.86,143.8,15.64152412]
[1768498760973,7.28640128,143.86,143.8,10.42889031]
[1768498761180,7.28640128,143.86,143.82,0.45292702]
[1768498763960,0.33519872,143.85,143.8,15.63964762]
[1768498764282,0.33519872,143.85,143.81,0.45292702]
[1768498765083,7.28697447,143.85,143.81,0.45292702]
[1768498765388,6.95177575,143.85,143.82,0.48959646]
[1768498765679,7.28697447,143.85,143.81,0.48959646]
[1768498767167,0.33519872,143.84,143.8,10.46349862]
[1768498767774,0.33519872,143.84,143.81,0.48959646]
[1768498767957,0.27519873,143.84,143.81,0.48959646]
[1768498768166,7.16740016,143.84,143.81,0.48959646]
[1768498769974,0.21519874,143.84,143.81,0.48959646]
[1768498770588,7.16747313,143.84,143.81,0.48959646]
[1768498773094,6.95227439,143.84,143.81,0.48959646]
[1768498773692,7.16747312,143.84,143.81,0.48959646]
[1768498773884,0.21519873,143.83,143.8,3.50959646]
[1768498774978,7.16800653,143.83,143.8,0.48959646]
[1768498775195,6.9528078,143.83,143.8,0.48959646]
[1768498778886,5.9528078,143.83,143.8,0.48959646]
[1768498779802,0.21519873,143.83,143.8,0.48959646]
[1768498780300,0.21519873,143.83,143.79,0.48959646]
[1768498781505,0.21519873,143.82,143.79,0.48959646]
[1768498781908,0.21519873,143.81,143.78,0.48959646]
[1768498782235,0.21519873,143.81,143.77,2.98]
[1768498782236,0.21519873,143.8,143.76,0.48959646]
[1768498782884,0.21519873,143.8,143.75,10.62567899]
[1768498783089,0.21519873,143.79,143.75,10.62567899]
[1768498783288,0.15519874,143.79,143.76,6.95599328]
[1768498783811,24.33620314,143.82,143.77,0.48959646]
[1768498783985,2.98,143.81,143.77,0.48959646]
[1768498784927,6.95410292,143.8,143.77,0.48959646]
[1768498785384,6.89410293,143.8,143.77,0.48959646]
[1768498785585,6.89410293,143.8,143.77,5.70223027]
[1768498785929,9.93351345,143.82,143.78,0.48959646]
[1768498786106,17.53604035,143.84,143.8,0.48959646]
[1768498786107,3.13519874,143.84,143.8,0.48959646]
[1768498786307,3.13519874,143.84,143.8,5.70223027]
[1768498787122,7.10771252,143.84,143.8,5.70223027]
[1768498787716,7.10771252,143.84,143.8,0.48959646]
[1768498787920,7.10771252,143.84,143.8,5.70223027]
[1768498788390,0.15519874,143.86,143.82,0.48959646]
[1768498788595,0.15519874,143.86,143.82,5.70223027]
[1768498789201,7.10674647,143.86,143.82,5.70223027]
[1768498790998,24.48329623,143.87,143.83,0.45082672]
[1768498792802,0.15519873,143.89,143.85,0.45082672]
[1768498793001,3.62676041,143.91,143.86,0.45082672]
[1768498793332,0.15519873,143.91,143.87,0.45082672]
[1768498794029,13.40007757,143.93,143.88,0.45082672]
[1768498794198,0.15519873,143.92,143.88,0.45082672]
[1768498794903,7.10381976,143.92,143.88,0.45082672]
[1768498796014,0.15519873,143.91,143.86,0.45082672]
[1768498796416,0.15519873,143.91,143.87,0.45082672]
[1768498796720,0.15519873,143.89,143.83,3.33705699]
[1768498796899,7.10540878,143.89,143.84,0.45082672]
[1768498797101,0.15519873,143.88,143.84,0.45082672]
[1768498797837,3.49225572,143.87,143.83,0.45082672]
[1768498798626,0.15519873,143.86,143.81,0.45082672]
[1768498798822,6.95168578,143.85,143.81,0.45082672]
[1768498799127,6.89168579,143.85,143.81,0.45082672]
[1768498799329,6.8316858,143.85,143.81,10.29059118]
[1768498799529,6.8316858,143.85,143.82,0.45082672]
[1768498799732,3.33705699,143.88,143.82,3.78788371]
[1768498799936,3.49225572,143.88,143.83,0.45082672]
[1768498800314,0.15519873,143.88,143.83,0.45082672]
[1768498800511,0.15519873,143.87,143.81,6.95353419]
[1768498800833,7.10725708,143.85,143.8,0.45082672]
[1768498801005,7.04725709,143.85,143.8,0.45082672]
[1768498801519,24.32075602,143.91,143.81,0.45082672]
[1768498801722,3.33705699,143.89,143.83,0.45082672]
[1768498802032,3.33705699,143.88,143.83,0.45082672]
[1768498802226,24.32075602,143.91,143.83,0.45082672]
[1768498802432,24.32075602,143.91,143.84,0.45082672]
[1768498802737,24.32075602,143.91,143.8,24.3391715]
[1768498802738,24.32075602,143.91,143.86,0.45082672]
[1768498802922,27.75301175,143.91,143.86,0.45082672]
[1768498803237,0.09519874,143.9,143.86,0.45082672]
[1768498803621,3.43225573,143.9,143.86,0.45082672]
[1768498803822,0.09519874,143.89,143.84,0.45082672]
[1768498804611,0.09519874,143.89,143.84,6.95215934]
[1768498804810,0.09519874,143.89,143.85,0.45082672]
[1768498805020,10.38200901,143.89,143.85,0.45082672]
[1768498806214,3.43225573,143.88,143.83,3.39082672]
[1768498806534,6.37225573,143.88,143.84,0.45082672]
[1768498806739,2.94,143.88,143.84,0.45082672]
[1768498807535,6.95071939,143.87,143.84,0.45082672]
[1768498810046,9.89041725,143.88,143.84,0.45082672]
[1768498812448,2.94,143.88,143.85,0.45082672]
[1768498812839,9.89029501,143.88,143.85,0.45082672]
[1768498814145,7.04495201,143.89,143.85,0.45082672]
[1768498814540,0.09519873,143.88,143.84,0.45082672]
[1768498814853,0.09519873,143.87,143.83,3.39082672]
[1768498815037,0.09519873,143.88,143.84,0.45082672]
[1768498821556,0.09519873,143.87,143.83,0.48780192]
[1768498821856,6.35225572,143.87,143.83,0.48780192]
[1768498822044,3.01519873,143.87,143.83,0.48780192]
[1768498822247,6.95120255,143.86,143.83,0.48780192]
[1768498827869,0.09519873,143.85,143.82,0.47204983]
[1768498828350,27.66626593,143.86,143.82,0.47204983]
[1768498828351,27.76146466,143.86,143.82,0.47204983]
[1768498830651,0.4769391,143.82,143.77,6.95514942]
[1768498830862,0.41693911,143.82,143.78,0.47204983]
[1768498832272,6.23705699,143.84,143.78,0.47204983]
[1768498832642,9.85237707,143.84,143.8,0.47204983]
[1768498833259,6.95237707,143.84,143.8,0.47204983]
[1768498833844,10.3288094,143.85,143.81,0.47204983]
[1768498834065,7.4288094,143.85,143.81,0.47204983]
[1768498834355,20.27609469,143.88,143.83,0.47204983]
[1768498834553,6.95081682,143.87,143.83,0.47204983]
[1768498835678,6.95081682,143.87,143.84,0.47204983]
[1768498838761,7.42677783,143.89,143.85,0.47204983]
[1768498842154,6.94946971,143.9,143.86,0.47204983]
[1768498842382,10.30640881,143.9,143.86,0.47204983]
[1768498843078,6.94946971,143.9,143.86,0.47204983]
[1768498843283,7.42640881,143.9,143.86,0.47204983]
[1768498843985,7.42673265,143.89,143.86,0.47204983]
[1768498844660,0.4769391,143.89,143.86,7.42320876]
[1768498844860,6.94932545,143.9,143.86,7.42320876]
[1768498845180,0.4769391,143.92,143.87,0.47204983]
[1768498846180,6.94878743,143.91,143.88,0.47204983]
[1768498849484,7.42572653,143.91,143.87,0.47204983]
[1768498849671,7.42572653,143.91,143.87,7.42276465]
[1768498849868,6.94878743,143.91,143.88,3.80910682]
[1768498850087,6.88878744,143.91,143.88,0.47204983]
[1768498853386,0.48077046,143.89,143.85,0.48571616]
[1768498854012,0.48077046,143.89,143.85,7.43731583]
[1768498854198,0.48077046,143.89,143.86,0.48571616]
[1768498854711,7.43063739,143.89,143.86,0.48571616]
[1768498855507,7.43020064,143.9,143.86,7.43689297]
[1768498855714,7.43020064,143.9,143.86,0.48571616]
[1768498856504,7.43020064,143.9,143.86,7.43671556]
[1768498860716,0.48077046,143.88,143.84,3.34571616]
[1768498861022,0.42077047,143.88,143.85,0.48571616]
[1768498862220,7.37128278,143.88,143.85,0.48571616]
[1768498862835,7.37128278,143.88,143.83,7.43810645]
[1768498862836,7.39776088,143.88,143.83,7.43810645]
[1768498863036,7.39776088,143.88,143.84,0.48571616]
[1768498863438,9.80878743,143.91,143.86,0.48571616]
[1768498863619,10.256036,143.91,143.86,0.48571616]
[1768498865427,27.62800458,143.91,143.86,0.48571616]
[1768498865610,0.44724856,143.9,143.86,0.48571616]
[1768498866017,5.66244006,143.9,143.86,0.48571616]
[1768498866545,7.39700184,143.89,143.86,0.48571616]
[1768498866712,7.33700185,143.89,143.86,0.48571616]
[1768498866916,29.53932798,143.89,143.84,0.48571616]
[1768498867416,24.32413648,143.89,143.84,0.48571616]
[1768498867615,24.32413648,143.89,143.84,12.65305449]
[1768498868116,6.88975329,143.89,143.85,0.48571616]
[1768498868640,7.27700186,143.89,143.85,0.48571616]
[1768498869724,0.38724857,143.88,143.84,0.48571616]
[1768498870623,7.33777972,143.88,143.84,0.48571616]
[1768498870821,6.95053115,143.88,143.84,0.48571616]
[1768498871021,6.89053116,143.88,143.84,7.43772936]
[1768498871332,22.58911822,143.9,143.85,0.48571616]
[1768498871538,6.94984967,143.89,143.85,0.48571616]
[1768498872433,6.94947518,143.9,143.86,0.48571616]
[1768498874340,6.94900745,143.91,143.87,0.48571616]
[1768498874542,3.22724857,143.93,143.88,0.48571616]
[1768498874724,8.44244007,143.93,143.88,0.48571616]
[1768498875130,6.94837835,143.92,143.88,0.48571616]
[1768498876133,9.78803284,143.93,143.88,0.48571616]
[1768498876443,6.94803284,143.93,143.9,0.48571616]
[1768498878139,6.94733916,143.94,143.9,0.48571616]
[1768498881040,6.94733916,143.94,143.91,0.47310154]
[1768498885334,7.33458773,143.94,143.91,0.47310154]
[1768498885919,12.54977923,143.94,143.91,0.47310154]
[1768498886644,5.60244007,143.93,143.89,0.49930593]
[1768498886837,5.2151915,143.93,143.89,0.49930593]
[1768498887518,0.38724857,143.92,143.87,7.44993099]
[1768498887751,5.60244007,143.92,143.88,0.49930593]
[1768498888142,0.38724857,143.9,143.87,0.49930593]
[1768498888342,0.32724858,143.9,143.87,0.49930593]
[1768498888642,6.94975328,143.89,143.86,0.49930593]
[1768498889740,7.276963,143.9,143.86,0.49930593]
[1768498891550,12.4921545,143.9,143.86,0.49930593]
[1768498891846,0.32724858,143.88,143.85,0.49930593]
[1768498892032,5.2151915,143.87,143.83,0.49930593]
[1768498892946,5.2151915,143.86,143.82,0.49930593]
[1768498893534,6.95071939,143.87,143.83,0.49930593]
[1768498893745,12.16591089,143.87,143.83,0.49930593]
[1768498894058,12.43315948,143.87,143.83,0.49930593]
[1768498895632,5.48244009,143.86,143.83,0.49930593]
[1768498896637,27.39476647,143.87,143.83,0.49930593]
[1768498896836,32.60995797,143.87,143.83,0.49930593]
[1768498898458,5.2151915,143.86,143.83,0.49930593]
[1768498899257,32.60995797,143.87,143.83,0.49930593]
[1768498904660,6.95168578,143.85,143.81,0.49930593]
[1768498905158,6.95168578,143.85,143.82,0.49930593]
[1768498905159,6.89168579,143.85,143.82,0.49930593]
[1768498905857,17.37679849,143.87,143.82,0.49930593]
[1768498906077,27.38937758,144.08,143.87,0.49930593]
[1768498906078,6.94878743,143.91,143.87,0.49930593]
[1768498908163,6.94878743,143.91,143.88,0.49930593]
[1768498908352,6.88878744,143.91,143.88,0.49930593]
[1768498911266,6.88878744,143.91,143.88,0.46439182]
[1768498911451,6.82878745,143.91,143.88,0.46439182]
[1768498911651,0.26724859,143.96,143.9,0.46439182]
[1768498911851,0.26724859,143.95,143.9,0.46439182]
[1768498912672,29.79643799,143.95,143.9,0.46439182]
[1768498913167,0.26724859,143.94,143.9,0.46439182]
[1768498913384,0.26724859,143.91,143.87,0.46439182]
[1768498914571,7.21651559,143.91,143.87,0.46439182]
[1768498915767,0.26724859,143.9,143.86,0.46439182]
[1768498916148,27.92591484,143.91,143.86,0.46439182]
[1768498917773,7.21700187,143.89,143.86,0.46439182]
[1768498918172,6.94975328,143.89,143.86,0.46439182]
[1768498919178,6.88975329,143.89,143.86,0.46439182]
[1768498920388,7.21669381,143.9,143.86,0.46439182]
[1768498923355,7.2166938,143.9,143.87,0.46439182]
[1768498923957,6.94944522,143.9,143.87,0.46439182]
[1768498924976,6.88944523,143.9,143.87,0.46439182]
[1768498927382,6.94830461,143.92,143.89,0.46439182]
[1768498927756,6.9480529,143.93,143.9,0.46439182]
[1768498929881,7.21530148,143.93,143.9,0.46439182]
[1768498930177,121.36659666,143.96,143.92,0.46439182]
[1768498930368,7.21431911,143.95,143.91,0.46439182]
[1768498930759,27.91889113,143.95,143.91,0.46439182]
[1768498930956,27.91889113,143.95,143.89,6.94960574]
[1768498930957,3.60467924,143.94,143.9,0.46439182]
[1768498931164,24.58146047,143.95,143.9,0.46439182]
[1768498931363,27.91889113,143.95,143.91,0.46439182]
[1768498931883,0.26724858,143.94,143.91,0.46439182]
[1768498932187,7.21464644,143.94,143.91,0.46439182]
[1768498933083,7.21423041,143.95,143.91,0.46439182]
[1768498933288,6.94698183,143.95,143.91,0.46439182]
[1768498933459,6.9466844,143.96,143.93,0.46439182]
[1768498933657,7.21393298,143.96,143.93,0.46439182]
[1768498933857,7.21393298,143.96,143.92,0.46439182]
[1768498936107,12.02505997,143.98,143.92,24.31897998]
[1768498936285,12.29230855,143.98,143.94,0.46439182]
[1768498936584,3.60467924,143.97,143.94,0.46439182]
[1768498936966,0.26724858,143.97,143.94,0.46439182]
[1768498937161,0.26724858,143.97,143.93,0.46439182]
[1768498937361,0.26724858,143.96,143.91,0.46439182]
[1768498937587,3.60467924,143.96,143.91,0.46439182]
[1768498937883,0.26724858,143.96,143.92,0.46439182]
[1768498938388,6.94685654,143.95,143.92,0.46439182]
[1768498939086,7.21377902,143.96,143.92,0.46439182]
[1768498939588,7.2135129,143.97,143.93,0.46439182]
[1768498941394,0.26724858,143.96,143.93,0.46439182]
[1768498941691,3.60467924,143.96,143.92,3.19677413]
[1768498941890,10.28369498,143.97,143.93,0.45677413]
[1768498942087,5.34660855,143.98,143.94,0.45677413]
[1768498942467,12.29212928,143.98,143.94,0.45677413]
[1768498942665,0.26724858,143.96,143.93,0.45677413]
[1768498942888,0.26724858,143.96,143.91,2.72]
[1768498942889,3.33743066,143.96,143.92,0.45677413]
[1768498943090,2.98724858,143.97,143.92,0.45677413]
[1768498943390,6.32467924,143.97,143.92,0.45677413]
[1768498944091,0.26724858,143.97,143.93,0.45677413]
[1768498944592,3.33743066,143.96,143.93,0.45677413]
[1768498944779,7.2131902,143.97,143.93,0.45677413]
[1768498945388,10.55062086,143.97,143.93,0.45677413]
[1768498946892,5.07935997,143.98,143.94,0.4950321]
[1768498947191,15.62949489,143.98,143.94,0.4950321]
[1768498948600,15.62949489,143.98,143.94,7.44234659]
[1768498948783,0.26724858,143.97,143.94,0.4950321]
[1768498949188,12.02481565,143.98,143.95,0.4950321]
[1768498949386,12.29206423,143.98,143.94,7.44218287]
[1768498949879,12.29206423,143.98,143.95,0.4950321]
[1768498950396,15.62949489,143.98,143.95,0.4950321]
[1768498951203,12.29206423,143.98,143.95,0.4950321]
[1768498951997,5.07935997,143.98,143.96,0.4950321]
[1768498952198,3.62432521,144.03,144.0,0.4950321]
[1768498952499,3.62432521,144.03,144.01,0.4950321]
[1768498952801,6.94203401,144.05,144.03,0.4950321]
[1768498952978,10.27946467,144.05,144.01,2.72]
[1768498953178,0.46879572,144.04,143.99,2.72]
[1768498953377,0.46879572,144.03,143.99,2.72]
[1768498954174,6.94348007,144.02,143.99,2.72]
[1768498954370,6.94348007,144.02,143.97,6.05743066]
[1768498954775,0.46879572,144.01,143.93,5.34408856]
[1768498954992,0.46879572,144.01,143.97,0.34648172]
[1768498955391,6.94348007,144.02,143.98,0.34648172]
[1768498955598,6.94348007,144.02,143.98,3.68391238]
[1768498955795,6.94348007,144.02,143.98,0.34648172]
[1768498956185,7.41227579,144.02,143.98,0.34648172]
[1768498958626,6.94328524,144.03,143.99,0.34648172]
[1768498958785,6.94328524,144.03,144.0,0.34648172]
[1768498959604,17.35651171,144.04,144.02,0.34648172]
[1768498959605,6.94282537,144.04,144.02,0.34648172]
[1768498960982,6.94282537,144.04,144.01,0.34648172]
[1768498962288,6.94209028,144.05,144.01,0.34648172]
[1768498962494,6.94209028,144.05,144.02,0.34648172]
[1768498965787,7.40986603,144.07,144.03,0.34648172]
[1768498966197,28.09997247,144.07,144.03,0.34648172]
[1768498966827,0.46879572,144.06,144.03,0.34648172]
[1768498967513,6.94203401,144.05,144.03,0.34648172]
[1768498967894,6.94203401,144.05,144.02,0.34648172]
[1768498968098,7.41082973,144.05,144.01,0.34648172]
[1768498968493,17.35450914,144.06,144.02,0.4950321]
[1768498969606,24.29606127,144.06,144.02,0.4950321]
[1768498970513,28.10228765,144.06,144.02,0.4950321]
[1768498971016,6.94155213,144.06,144.03,0.46705308]
[1768498971593,6.94107031,144.07,144.03,0.46705308]
[1768498972214,7.3952991,144.07,144.03,0.46705308]
[1768498972420,24.74797488,144.07,144.03,0.46705308]
[1768498973212,24.29374609,144.07,144.04,0.46705308]
[1768498973804,3.33743066,144.08,144.05,0.46705308]
[1768498973805,6.94071279,144.08,144.05,0.46705308]
[1768498974209,17.34793524,144.11,144.07,0.46705308]
[1768498974413,17.34793524,144.11,144.08,0.46705308]
[1768498975195,6.9391437,144.11,144.08,0.46705308]
[1768498978427,24.74123176,144.11,144.07,2.68]
[1768498978642,0.45422879,144.1,144.08,2.68]
[1768498978924,24.28700297,144.11,144.08,2.68]
[1768498979123,6.9391437,144.11,144.08,2.68]
[1768498979516,7.39337249,144.11,144.08,2.68]
[1768498980806,0.45422879,144.1,144.06,0.30245315]
[1768498981912,6.94010687,144.09,144.06,0.30245315]
[1768498982812,0.45422879,144.08,144.02,11.54566695]
[1768498983019,0.45422879,144.06,144.01,2.66]
[1768498983330,5.65413468,144.07,144.01,14.80379355]
[1768498983512,0.45422879,144.07,144.02,2.66]
[1768498983828,29.49027995,144.09,144.02,7.85990589]
[1768498984017,0.45422879,144.09,144.04,5.19990589]
[1768498984422,6.93962526,144.1,144.05,7.85990589]
[1768498984825,7.39385405,144.1,144.06,0.27245315]
[1768498987132,6.93962526,144.1,144.06,0.27245315]
[1768498987324,6.93962526,144.1,144.07,0.27245315]
[1768498988720,6.93932858,144.11,144.08,0.27245315]
[1768498989417,7.39355737,144.11,144.08,0.27245315]
[1768498989622,7.39355737,144.11,144.07,5.47235904]
[1768498990620,6.93932858,144.11,144.08,0.27245315]
[1768498991424,0.45422879,144.1,144.06,7.21380945]
[1768498991627,0.45422879,144.1,144.07,0.27245315]
[1768498991934,7.39355737,144.11,144.07,12.41338889]
[1768498992435,7.39355737,144.11,144.07,7.213483]
[1768498992741,7.39355737,144.11,144.07,0.27245315]
[1768498993123,0.45422879,144.11,144.07,12.41327828]
[1768498993920,0.45422879,144.11,144.08,0.27245315]
[1768498994120,0.45422879,144.1,144.07,6.94091924]
[1768498994328,0.45422879,144.1,144.07,7.21337239]
[1768498994515,0.45422879,144.11,144.07,7.21337239]
[1768498995741,0.45422879,144.1,144.05,7.21428593]
[1768498995946,5.65413468,144.1,144.05,2.64]
[1768498996162,0.45422879,144.07,144.02,15.05562473]
[1768498996440,0.45422879,144.06,144.01,9.85631699]
[1768498996642,5.19990589,144.07,144.01,2.91245315]
[1768498996643,0.45422879,144.05,144.01,2.91245315]
[1768498996947,0.45422879,144.04,143.99,22.26257493]
[1768498997140,0.45422879,144.04,144.0,6.94443077]
[1768498997933,12.14213801,144.05,144.0,7.41148385]
[1768498999738,12.14213801,144.05,144.0,0.46705308]
[1768498999950,0.45422879,144.04,143.99,19.89749604]
[1768499000163,0.45422879,144.03,143.99,19.89749604]
[1768499001456,7.39724541,144.03,143.99,19.89749604]
[1768499002041,0.48736823,144.04,144.0,5.68817691]
[1768499002552,0.48736823,144.03,143.99,22.47861987]
[1768499003134,0.48736823,144.03,144.0,0.48827102]
[1768499003340,0.48736823,144.03,144.0,7.43257353]
[1768499003946,7.43018384,144.04,144.0,7.43257353]
[1768499004141,0.48736823,144.06,144.03,0.48827102]
[1768499004354,0.48736823,144.06,144.01,5.68817691]
[1768499004749,0.48736823,144.06,144.02,0.48827102]
[1768499005341,0.47548606,144.05,144.02,0.48827102]
[1768499005743,0.47548606,144.05,144.01,7.41846331]
[1768499006959,7.41772519,144.05,144.01,7.41846331]
[1768499007158,0.47548606,144.05,144.01,7.41846331]
[1768499007670,0.47548606,144.06,144.02,0.47472098]
[1768499007963,3.09548606,144.07,144.02,0.47472098]
[1768499008368,12.61619161,144.08,144.04,0.47472098]
[1768499008683,2.62,144.09,144.06,0.47472098]
[1768499008684,7.41560311,144.09,144.06,0.47472098]
[1768499008878,0.47548606,144.1,144.06,5.67462687]
[1768499009240,0.47548606,144.1,144.05,5.67462687]
[1768499009640,0.47548606,144.1,144.06,0.47472098]
[1768499010161,0.47548606,144.1,144.06,7.41602201]
[1768499011466,0.47548606,144.1,144.06,12.6159279]
[1768499012074,7.41514502,144.1,144.06,12.6159279]
[1768499012569,7.41514502,144.1,144.06,7.41602201]
[1768499012769,0.47548606,144.1,144.06,7.41602201]
[1768499013671,0.47548606,144.1,144.06,12.6159279]
[1768499015885,0.47548606,144.1,144.06,7.41602201]
[1768499016187,0.47548606,144.09,144.06,7.41602201]
[1768499016849,0.47548606,144.08,144.04,2.62]
[1768499017084,0.47548606,144.08,144.04,6.94223777]
[1768499017377,0.47548606,144.08,144.04,7.41695875]
[1768499018077,7.41632172,144.08,144.04,7.41695875]
[1768499018393,0.47548606,144.08,144.04,7.41695875]
[1768499018706,5.67539195,144.08,144.04,7.41695875]
[1768499019059,0.47548606,144.05,144.02,6.94320924]
[1768499019849,0.47548606,144.02,143.99,7.41938473]
[1768499020087,0.47548606,144.02,143.93,7.71677922]
[1768499020088,0.47548606,144.0,143.96,5.67462687]
[1768499020265,5.67539195,144.0,143.97,6.94557231]
[1768499020584,0.47548606,144.0,143.97,6.94557231]
[1768499021664,5.19990589,144.0,143.97,6.94588886]
[1768499021971,5.19990589,144.0,143.96,0.47472098]
[1768499021972,5.19990589,143.99,143.96,6.94617882]
[1768499022180,5.19990589,144.0,143.96,6.94617882]
[1768499022879,12.14435557,144.0,143.96,6.94617882]
[1768499023187,5.19990589,143.99,143.96,6.94617882]
[1768499023396,5.1399059,143.99,143.96,6.94617882]
[1768499023774,7.41993574,144.0,143.96,6.94617882]
[1768499023973,12.55984164,144.0,143.96,6.94617882]
[1768499024677,12.49984165,144.0,143.96,6.94617882]
[1768499026166,0.47548606,143.99,143.96,6.94617882]
[1768499026374,0.47548606,143.98,143.94,7.42186958]
[1768499027181,0.47548606,143.98,143.94,12.62177547]
[1768499027382,0.47548606,143.98,143.95,0.47472098]
[1768499027601,15.22031993,143.99,143.95,0.47472098]
[1768499028080,0.47548606,143.98,143.94,0.47472098]
[1768499028262,0.47548606,143.98,143.93,14.32234636]
[1768499028467,0.47548606,143.98,143.94,6.94718422]
[1768499028692,0.47548606,143.97,143.94,6.94718422]
[1768499029990,0.47548606,143.97,143.93,12.62225256]
[1768499030197,15.22104408,143.98,143.94,0.47472098]
[1768499030878,0.45335564,143.96,143.92,7.41448293]
[1768499031067,0.39337787,143.96,143.92,7.41448293]
[1768499031785,7.33978984,143.96,143.92,0.46638055]
[1768499032095,6.94641197,143.96,143.92,0.46638055]
[1768499032476,6.94641197,143.96,143.92,7.41464332]
[1768499032880,12.14631786,143.96,143.92,0.46638055]
[1768499033080,14.74631786,143.96,143.91,5.66628644]
[1768499033290,0.45335564,143.95,143.91,5.66628644]
[1768499033500,0.39335565,143.95,143.91,0.46638055]
[1768499033798,12.14720652,143.95,143.91,0.46638055]
[1768499034005,12.14720652,143.95,143.9,12.61537979]
[1768499034500,6.94730063,143.95,143.91,0.46638055]
[1768499035298,6.94730063,143.95,143.88,24.32518045]
[1768499035605,0.45335564,143.92,143.88,0.46638055]
[1768499035794,0.45335564,143.92,143.88,5.66628644]
[1768499035992,24.31444199,143.95,143.9,5.19990589]
[1768499035993,6.94730063,143.95,143.9,5.19990589]
[1768499036300,2.58,143.94,143.91,0.46638055]
[1768499036701,3.03335564,143.97,143.93,5.66628644]
[1768499037002,0.45335564,143.97,143.94,5.66628644]
[1768499037422,9.52540908,143.98,143.95,5.66628644]
[1768499037423,0.45335564,143.98,143.95,5.66628644]
[1768499037692,121.36259121,143.99,143.95,5.66628644]
[1768499037693,3.03335564,143.99,143.95,5.66628644]
[1768499037896,0.45335564,143.99,143.95,5.66628644]
[1768499039289,0.45335564,143.99,143.95,3.79982095]